Workbook

Sheet 提出様式（記載例）
J2: 応募者 | K2: ○○株式会社
B5: （１）ＣＯ２吸収量の算定方法 以下のいずれかの方法にチェックを記載 Ａ 「森林による二酸化炭素吸収量の算定方法について」（令和３年12月27日付３林政企第60号林野庁長官通知） に基づく算定方法 ａ １年間に森林が吸収するＣＯ２量の簡便な算定方法 □ア 簡易な方法 □イ 精緻な方法 □ｂ 再造林・保育を行うことにより森林に吸収されるＣＯ２量の増加分の算定方法 □ｃ 森林の育成により保持される土壌炭素量（ＣＯ２換算）の算定方法 □Ｂ 都府県による二酸化炭素吸収量認証制度に基づく算定方法 □Ｃ 国有林における「法人の森林」における環境貢献度評価に基づく算定方法
B22: （２）森林整備の詳細
L23: 面積合計 | N23: =H327 -> 44
L24: 吸収量合計 | N24: =O327 -> 353
B25: 番号 | C25: 森林の所在地 | E25: 所有形態 | F25: 整備 年度 | G25: 主な 整備内容 | H25: 面積 | I25: 樹種 | J25: その他の 樹種 | K25: 林齢 | L25: ha当り 立木本数 | M25: 樹高 | N25: 平均 直径 | O25: 年間ＣＯ２ 吸収量
C26: 都道府県 | D26: 市町村以下
B27: 1 | C27: 栃木県 | D27: E市101-22-33 | E27: 国 | F27: R4 | G27: 植栽 | H27: 4 | I27: ヒノキ | K27: 1 | O27: 1
B28: 2 | C28: 栃木県 | D28: E市101-22-34 | E28: 都道府県 | F28: R4・R5 | G28: 下刈 | H28: 2 | I28: スギ | K28: 3 | O28: 1
B29: 3 | C29: 群馬県 | D29: F市87-1-a | E29: 市町村 | F29: R5 | G29: 枝打ち | H29: 7 | I29: カラマツ | K29: 10 | O29: 3
B30: 4 | C30: 群馬県 | D30: F市23-3-c | E30: 個人（応募者自ら所有） | F30: R4 | G30: 除伐 | H30: 4 | I30: その他樹種 | J30: クヌギ | K30: 13 | O30: 11
B31: 5 | C31: 群馬県 | D31: F市233-4-1 | E31: 個人（他者所有） | F31: R4・R5 | G31: 間伐 | H31: 9 | I31: ヒノキ | K31: 35 | O31: 240
B32: 6 | C32: 栃木県 | D32: E市101-22-33 | E32: 企業、団体（応募者自ら所有） | F32: R5 | G32: 植栽 | H32: 1 | I32: スギ | K32: 1 | O32: 1
B33: 7 | C33: 栃木県 | D33: E市101-22-34 | E33: 企業、団体（他者所有） | F33: R4 | G33: 下刈 | H33: 2 | I33: カラマツ | K33: 2 | O33: 1
B34: 8 | C34: 群馬県 | D34: F市87-1-a | E34: その他 | F34: R4・R5 | G34: 枝打ち | H34: 5 | I34: その他樹種 | J34: コウヨウザン | K34: 9 | O34: 20
B35: 9 | C35: 群馬県 | D35: F市23-3-c | E35: 国 | F35: R5 | G35: 除伐 | H35: 7 | I35: ヒノキ | K35: 11 | O35: 25
B36: 10 | C36: 群馬県 | D36: F市233-4-1 | E36: 都道府県 | F36: R4 | G36: 間伐 | H36: 3 | I36: スギ | K36: 42 | O36: 50
R42: =IF(K42="","",ROUNDUP(K42/5,0)) -> 
B327: 合計 | H327: =ROUND(SUM(H27:H326),2) -> 44 | O327: =ROUND(SUM(O27:O326),0) -> 353

Sheet 提出様式
J2: 応募者 | K2: ○○株式会社
B5: （１）ＣＯ２吸収量の算定方法 以下のいずれかの方法にチェックを記載 Ａ 「森林による二酸化炭素吸収量の算定方法について」（令和３年12月27日付３林政企第60号林野庁長官通知） に基づく算定方法 ａ １年間に森林が吸収するＣＯ２量の簡便な算定方法 ア 簡易な方法 イ 精緻な方法 ｂ 再造林・保育を行うことにより森林に吸収されるＣＯ２量の増加分の算定方法 ｃ 森林の育成により保持される土壌炭素量（ＣＯ２換算）の算定方法 Ｂ 都府県による二酸化炭素吸収量認証制度に基づく算定方法 Ｃ 国有林における「法人の森林」における環境貢献度評価に基づく算定方法
B20: （２）森林整備の詳細
L21: 面積合計 | N21: =H325 -> 0
L22: 吸収量合計 | N22: =O325 -> 0
B23: 番号 | C23: 森林の所在地 | E23: 所有形態 | F23: 整備 年度 | G23: 主な 整備内容 | H23: 面積 | I23: 樹種 | J23: その他の 樹種 | K23: 林齢 | L23: ha当り 立木本数 | M23: 樹高 | N23: 平均 直径 | O23: 年間ＣＯ２ 吸収量
C24: 都道府県 | D24: 市町村以下
B25: =IF(C25="","",1) -> 
B26: =IF(C26="","",SUM(B25+1)) -> 
B27: =IF(C27="","",SUM(B26+1)) -> 
B31: =IF(C31="","",SUM(B30+1)) -> 
B36: =IF(C36="","",SUM(B35+1)) -> 
B100: =IF(C100="","",SUM(B99+1)) -> 
B164: =IF(C164="","",SUM(B163+1)) -> 
B228: =IF(C228="","",SUM(B227+1)) -> 
B292: =IF(C292="","",SUM(B291+1)) -> 
B325: 合計 | H325: =ROUND(SUM(H25:H324),2) -> 0 | O325: =ROUND(SUM(O25:O324),0) -> 0

Sheet 密度管理 (hidden)
A1: 番号 | B1: 変数 | C1: ｋ１ | D1: ｋ２ | E1: ｋ３ | F1: ｋ４ | G1: H:実測上層樹高 | H1: N:ha本数 | I1: 計算結果 | J1: D:平均実測直径 | K1: 補正材積
A2: 1 | B2: V:ha材積 | C2: 0.057326 | D2: -1.36938 | E2: 6475.4 | F2: -2.902205 | G2: 24.41142874 | H2: 606.25 | I2: =(C2*G2^D2+E2*G2^F2/H2)^-1 -> 579.7116265 | J2: 37.59046751 | K2: =I2*(J2/I6)^2 -> 816.5630259
B3: HF:林分形状高 | C3: 0.723894 | D3: 0.410411 | E3: 0.15519 | G3: =G2 -> 24.41142874 | H3: =H2 -> 606.25 | I3: =C3+D3*G3+E3*SQRT(H3)*G3/100 -> 11.67540058
B4: G:ha当たり断面積 | I4: =I2/I3 -> 49.65239717
B5: dg^：断面積平均直径 | H5: =H2 -> 606.25 | I5: =200*SQRT(I4/(PI()*H5)) -> 32.29232345
B6: d^：平均胸高直径 | C6: -0.113656 | D6: 0.995045 | E6: -0.057512 | G6: =G2 -> 24.41142874 | H6: =H2 -> 606.25 | I6: =C6+D6*I5+E6*SQRT(H6)*G6/100 -> 31.67297637
B7: Rｙ：収量比数 | G7: =G2 -> 24.41142874 | H7: =H2 -> 606.25 | I7: =I2/I8 -> 0.6213371665 | K7: =K2/I8 -> 0.8751954138
B8: Vrf：最多密度材積 | C8: =C2 -> 0.057326 | D8: =D2 -> -1.36938 | E8: =E2 -> 6475.4 | F8: =F2 -> -2.902205 | G8: =G2 -> 24.41142874 | I8: =(C8*G8^D8+E8*G8^F8/I9)^-1 -> 933.0065184
B9: Nrf:最多密度本数 | C9: 5.33888 | D9: -1.512831 | G9: =G2 -> 24.41142874 | I9: =10^(C9+D9*LOG(G9)) -> 1736.544809
A10: 2 | B10: V:ha材積 | C10: 0.060047 | D10: -1.352337 | E10: 3743.3 | F10: -2.824828 | G10: 22 | H10: 900 | I10: =(C10*G10^D10+E10*G10^F10/H10)^-1 -> 629.0171701 | J10: 28 | K10: =I10*(J10/I14)^2 -> 611.3231773
B11: HF:林分形状高 | C11: 0.667196 | D11: 0.387485 | E11: 0.189979 | G11: =G10 -> 22 | H11: =H10 -> 900 | I11: =C11+D11*G11+E11*SQRT(H11)*G11/100 -> 10.4457274
B12: G:ha当たり断面積 | I12: =I10/I11 -> 60.2176513
B13: dg^：断面積平均直径 | H13: =H10 -> 900 | I13: =200*SQRT(I12/(PI()*H13)) -> 29.18742022
B14: d^：平均胸高直径 | C14: -0.382224 | D14: 0.986197 | G14: =G10 -> 22 | H14: =H10 -> 900 | I14: =C14+D14*I13+E14*SQRT(H14)*G14/100 -> 28.40232226
B15: Rｙ：収量比数 | G15: =G10 -> 22 | H15: =H10 -> 900 | I15: =I10/I16 -> 0.7608915391 | K15: =K10/I16 -> 0.7394879748
B16: Vrf：最多密度材積 | C16: =C10 -> 0.060047 | D16: =D10 -> -1.352337 | E16: =E10 -> 3743.3 | F16: =F10 -> -2.824828 | G16: =G10 -> 22 | I16: =(C16*G16^D16+E16*G16^F16/I17)^-1 -> 826.6844061
B17: Nrf:最多密度本数 | C17: 5.29374 | D17: -1.47249 | G17: =G10 -> 22 | I17: =10^(C17+D17*LOG(G17)) -> 2075.085648
A18: 3 | B18: V:ha材積 | C18: 0.07156 | D18: -1.373859 | E18: 5062 | F18: -2.869785 | G18: 22 | H18: 900 | I18: =(C18*G18^D18+E18*G18^F18/H18)^-1 -> 551.223714 | J18: 28 | K18: =I18*(J18/I22)^2 -> 630.2730632
B19: HF:林分形状高 | C19: 0.650787 | D19: 0.417356 | E19: 0.138768 | G19: =G18 -> 22 | H19: =H18 -> 900 | I19: =C19+D19*G19+E19*SQRT(H19)*G19/100 -> 10.7484878
B20: G:ha当たり断面積 | I20: =I18/I19 -> 51.28383865
B21: dg^：断面積平均直径 | H21: =H18 -> 900 | I21: =200*SQRT(I20/(PI()*H21)) -> 26.93543956
B22: d^：平均胸高直径 | C22: 0.193943 | D22: 0.987164 | E22: -0.090657 | G22: =G18 -> 22 | H22: =H18 -> 900 | I22: =C22+D22*I21+E22*SQRT(H22)*G22/100 -> 26.18530305
B23: Rｙ：収量比数 | G23: =G18 -> 22 | H23: =H18 -> 900 | I23: =I18/I24 -> 0.7345274725 | K23: =K18/I24 -> 0.8398638671
B24: Vrf：最多密度材積 | C24: =C18 -> 0.07156 | D24: =D18 -> -1.373859 | E24: =E18 -> 5062 | F24: =F18 -> -2.869785 | G24: =G18 -> 22 | I24: =(C24*G24^D24+E24*G24^F24/I25)^-1 -> 750.4466949
B25: Nrf:最多密度本数 | C25: 5.370947 | D25: -1.495926 | G25: =G18 -> 22 | I25: =10^(C25+D25*LOG(G25)) -> 2305.589623
A26: 4 | B26: V:ha材積 | C26: 0.082249 | D26: -1.372921 | E26: 3681.6 | F26: -2.867826 | G26: 24.41142874 | H26: 606.25 | I26: =(C26*G26^D26+E26*G26^F26/H26)^-1 -> 602.3087949 | J26: 37.59046751 | K26: =I26*(J26/I30)^2 -> 810.4351441
B27: HF:林分形状高 | C27: 0.808545 | D27: 0.402345 | E27: 0.140882 | G27: =G26 -> 24.41142874 | H27: =H26 -> 606.25 | I27: =C27+D27*G27+E27*SQRT(H27)*G27/100 -> 11.47714908
B28: G:ha当たり断面積 | I28: =I26/I27 -> 52.47895542
B29: dg^：断面積平均直径 | H29: =H26 -> 606.25 | I29: =200*SQRT(I28/(PI()*H29)) -> 33.19875325
B30: d^：平均胸高直径 | C30: -0.000379 | D30: 0.981298 | E30: -0.028497 | G30: =G26 -> 24.41142874 | H30: =H26 -> 606.25 | I30: =C30+D30*I29+E30*SQRT(H30)*G30/100 -> 32.40620661
B31: Rｙ：収量比数 | G31: =G26 -> 24.41142874 | H31: =H26 -> 606.25 | I31: =I26/I32 -> 0.7285154377 | K31: =K26/I32 -> 0.9802521875
B32: Vrf：最多密度材積 | C32: =C26 -> 0.082249 | D32: =D26 -> -1.372921 | E32: =E26 -> 3681.6 | F32: =F26 -> -2.867826 | G32: =G26 -> 24.41142874 | I32: =(C32*G32^D32+E32*G32^F32/I33)^-1 -> 826.7618827
B33: Nrf:最多密度本数 | C33: 5.391307 | D33: -1.494905 | G33: =G26 -> 24.41142874 | I33: =10^(C33+D33*LOG(G33)) -> 2074.85136
A34: 5 | B34: V:ha材積 | C34: 0.061977 | D34: -1.351766 | E34: 4725.2 | F34: -2.823636 | G34: 24.45 | H34: 800 | I34: =(C34*G34^D34+E34*G34^F34/H34)^-1 -> 652.0983822 | J34: 24.61875 | K34: =I34*(J34/I38)^2 -> 455.1343547
B35: HF:林分形状高 | C35: 1.23249 | D35: 0.35958 | E35: 0.1473 | G35: =G34 -> 24.45 | H35: =H34 -> 800 | I35: =C35+D35*G35+E35*SQRT(H35)*G35/100 -> 11.04287479
B36: G:ha当たり断面積 | I36: =I34/I35 -> 59.0515056
B37: dg^：断面積平均直径 | H37: =H34 -> 800 | I37: =200*SQRT(I36/(PI()*H37)) -> 30.65671054
B38: d^：平均胸高直径 | C38: -0.32087 | D38: 0.9824 | E38: -0.04745 | G38: =G34 -> 24.45 | H38: =H34 -> 800 | I38: =C38+D38*I37+E38*SQRT(H38)*G38/100 -> 29.46814176
B39: Rｙ：収量比数 | G39: =G34 -> 24.45 | H39: =H34 -> 800 | I39: =I34/I40 -> 0.7309065204 | K39: =K34/I40 -> 0.5101387713
B40: Vrf：最多密度材積 | C40: =C34 -> 0.061977 | D40: =D34 -> -1.351766 | E40: =E34 -> 4725.2 | F40: =F34 -> -2.823636 | G40: =G34 -> 24.45 | I40: =(C40*G40^D40+E40*G40^F40/I41)^-1 -> 892.1775412
B41: Nrf:最多密度本数 | C41: 5.32435 | D41: -1.47187 | G41: =G34 -> 24.45 | I41: =10^(C41+D41*LOG(G41)) -> 1909.782851
A42: 6 | B42: V:ha材積 | C42: 0.074343 | D42: -1.388481 | E42: 5065 | F42: -2.900328 | G42: 20.4 | H42: 1225 | I42: =(C42*G42^D42+E42*G42^F42/H42)^-1 -> 559.5415541 | J42: 24.73673469 | K42: =I42*(J42/I46)^2 -> 610.9258223
B43: HF:林分形状高 | C43: 1.273477 | D43: 0.36758 | E43: 0.140427 | G43: =G42 -> 20.4 | H43: =H42 -> 1225 | I43: =C43+D43*G43+E43*SQRT(H43)*G43/100 -> 9.77475778
B44: G:ha当たり断面積 | I44: =I42/I43 -> 57.24352119
B45: dg^：断面積平均直径 | H45: =H42 -> 1225 | I45: =200*SQRT(I44/(PI()*H45)) -> 24.39215579
B46: d^：平均胸高直径 | C46: -0.15213 | D46: 0.985016 | E46: -0.028142 | G46: =G42 -> 20.4 | H46: =H42 -> 1225 | I46: =C46+D46*I45+E46*SQRT(H46)*G46/100 -> 23.67359985
B47: Rｙ：収量比数 | G47: =G42 -> 20.4 | H47: =H42 -> 1225 | I47: =I42/I48 -> 0.8105102213 | K47: =K42/I48 -> 0.8849416452
B48: Vrf：最多密度材積 | C48: =C42 -> 0.074343 | D48: =D42 -> -1.388481 | E48: =E42 -> 5065 | F48: =F42 -> -2.900328 | G48: =G42 -> 20.4 | I48: =(C48*G48^D48+E48*G48^F48/I49)^-1 -> 690.3571842
B49: Nrf:最多密度本数 | C49: 5.38221 | D49: -1.51185 | G49: =G42 -> 20.4 | I49: =10^(C49+D49*LOG(G49)) -> 2524.908424
A50: 7 | B50: V:ha材積 | C50: 0.068509 | D50: -1.347464 | E50: 2658.2 | F50: -2.814651 | G50: 24.41142874 | H50: 606.25 | I50: =(C50*G50^D50+E50*G50^F50/H50)^-1 -> 680.4260261 | J50: 37.59046751 | K50: =I50*(J50/I54)^2 -> 759.9184428
B51: HF:林分形状高 | C51: 0.791213 | D51: 0.353895 | E51: 0.244012 | G51: =G50 -> 24.41142874 | H51: =H50 -> 606.25 | I51: =C51+D51*G51+E51*SQRT(H51)*G51/100 -> 10.89695831
B52: G:ha当たり断面積 | I52: =I50/I51 -> 62.44183069
B53: dg^：断面積平均直径 | H53: =H50 -> 606.25 | I53: =200*SQRT(I52/(PI()*H53)) -> 36.21320784
B54: d^：平均胸高直径 | C54: -0.04894 | D54: 0.98937 | E54: -0.034814 | G54: =G50 -> 24.41142874 | H54: =H50 -> 606.25 | I54: =C54+D54*I53+E54*SQRT(H54)*G54/100 -> 35.57006781
B55: Rｙ：収量比数 | G55: =G50 -> 24.41142874 | H55: =H50 -> 606.25 | I55: =I50/I56 -> 0.7492594619 | K55: =K50/I56 -> 0.8367935113
B56: Vrf：最多密度材積 | C56: =C50 -> 0.068509 | D56: =D50 -> -1.347464 | E56: =E50 -> 2658.2 | F56: =F50 -> -2.814651 | G56: =G50 -> 24.41142874 | I56: =(C56*G56^D56+E56*G56^F56/I57)^-1 -> 908.1313759
B57: Nrf:最多密度本数 | C57: 5.3083 | D57: -1.4672 | G57: =G50 -> 24.41142874 | I57: =10^(C57+D57*LOG(G57)) -> 1872.506178
A58: 8 | B58: V:ha材積 | C58: 0.035147 | D58: -1.080773 | E58: 4711.2 | F58: -2.922894 | G58: 15 | H58: 1500 | I58: =(C58*G58^D58+E58*G58^F58/H58)^-1 -> 330.089066 | J58: 0 | K58: =I58*(J58/I62)^2 -> 0
B59: HF:林分形状高 | C59: -0.052817 | D59: 0.472577 | E59: 0.123506 | G59: =G58 -> 15 | H59: =H58 -> 1500 | I59: =C59+D59*G59+E59*SQRT(H59)*G59/100 -> 7.753343022
B60: G:ha当たり断面積 | I60: =I58/I59 -> 42.57377302
B61: dg^：断面積平均直径 | H61: =H58 -> 1500 | I61: =200*SQRT(I60/(PI()*H61)) -> 19.00992923
B62: d^：平均胸高直径 | C62: -0.115479 | D62: 0.984423 | G62: =G58 -> 15 | H62: =H58 -> 1500 | I62: =C62+D62*I61+E62*SQRT(H62)*G62/100 -> 18.59833256
B63: Rｙ：収量比数 | G63: =G58 -> 15 | H63: =H58 -> 1500 | I63: =I58/I64 -> 0.7736375991 | K63: =K58/I64 -> 0
B64: Vrf：最多密度材積 | C64: =C58 -> 0.035147 | D64: =D58 -> -1.080773 | E64: =E58 -> 4711.2 | F64: =F58 -> -2.922894 | G64: =G58 -> 15 | I64: =(C64*G64^D64+E64*G64^F64/I65)^-1 -> 426.6714368
B65: Nrf:最多密度本数 | C65: 5.7384 | D65: -1.842121 | G65: =G58 -> 15 | I65: =10^(C65+D65*LOG(G65)) -> 3731.621561
A66: 9 | B66: V:ha材積 | C66: 0.0390819 | D66: -1.147348 | E66: 8524.5 | F66: -3.102942 | G66: 17.225 | H66: 2066.666667 | I66: =(C66*G66^D66+E66*G66^F66/H66)^-1 -> 477.6090438 | J66: 18.66774194 | K66: =I66*(J66/I70)^2 -> 553.9234948
B67: HF:林分形状高 | C67: -0.089118 | D67: 0.463318 | E67: 0.178773 | G67: =G66 -> 17.225 | H67: =H66 -> 2066.666667 | I67: =C67+D67*G67+E67*SQRT(H67)*G67/100 -> 9.291432495
B68: G:ha当たり断面積 | I68: =I66/I67 -> 51.40316566
B69: dg^：断面積平均直径 | H69: =H66 -> 2066.666667 | I69: =200*SQRT(I68/(PI()*H69)) -> 17.79568767
B70: d^：平均胸高直径 | C70: -0.029001 | D70: 0.99178 | E70: -0.036553 | G70: =G66 -> 17.225 | H70: =H66 -> 2066.666667 | I70: =C70+D70*I69+E70*SQRT(H70)*G70/100 -> 17.33417458
B71: Rｙ：収量比数 | G71: =G66 -> 17.225 | H71: =H66 -> 2066.666667 | I71: =I66/I72 -> 0.9306313959 | K71: =K66/I72 -> 1.079331729
B72: Vrf：最多密度材積 | C72: =C66 -> 0.0390819 | D72: =D66 -> -1.147348 | E72: =E66 -> 8524.5 | F72: =F66 -> -3.102942 | G72: =G66 -> 17.225 | I72: =(C72*G72^D72+E72*G72^F72/I73)^-1 -> 513.2096831
B73: Nrf:最多密度本数 | C73: 5.852583 | D73: -1.955594 | G73: =G66 -> 17.225 | I73: =10^(C73+D73*LOG(G73)) -> 2723.688428
A74: 10 | B74: V:ha材積 | C74: 0.053887 | D74: -1.18794 | E74: 7663.1 | F74: -3.20151 | G74: 12.74705882 | H74: 2366.666667 | I74: =(C74*G74^D74+E74*G74^F74/H74)^-1 -> 281.2025914 | J74: 14.87464789 | K74: =I74*(J74/I78)^2 -> 295.3518163
B75: HF:林分形状高 | C75: 0.320738 | D75: 0.437334 | E75: 0.153257 | G75: =G74 -> 12.74705882 | H75: =H74 -> 2366.666667 | I75: =C75+D75*G75+E75*SQRT(H75)*G75/100 -> 6.845843656
B76: G:ha当たり断面積 | I76: =I74/I75 -> 41.07639694
B77: dg^：断面積平均直径 | H77: =H74 -> 2366.666667 | I77: =200*SQRT(I76/(PI()*H77)) -> 14.86560823
B78: d^：平均胸高直径 | C78: -0.241667 | D78: 0.992603 | G78: =G74 -> 12.74705882 | H78: =H74 -> 2366.666667 | I78: =C78+D78*I77+E78*SQRT(H78)*G78/100 -> 14.51398033
B79: Rｙ：収量比数 | G79: =G74 -> 12.74705882 | H79: =H74 -> 2366.666667 | I79: =I74/I80 -> 0.8444951051 | K79: =K74/I80 -> 0.8869874277
B80: Vrf：最多密度材積 | C80: =C74 -> 0.053887 | D80: =D74 -> -1.18794 | E80: =E74 -> 7663.1 | F80: =F74 -> -3.20151 | G80: =G74 -> 12.74705882 | I80: =(C80*G80^D80+E80*G80^F80/I81)^-1 -> 332.9830921
B81: Nrf:最多密度本数 | C81: 5.992602 | D81: -2.017716 | G81: =G74 -> 12.74705882 | I81: =10^(C81+D81*LOG(G81)) -> 5783.604364
A82: 11 | B82: V:ha材積 | C82: 0.04933263 | D82: -1.206227 | E82: 8676.3 | F82: -3.26218 | G82: 10.9 | H82: 733.3333333 | I82: =(C82*G82^D82+E82*G82^F82/H82)^-1 -> 130.731508 | J82: 17.88636364 | K82: =I82*(J82/I86)^2 -> 104.4476437
B83: HF:林分形状高 | C83: 0.406256 | D83: 0.424739 | E83: 0.157447 | G83: =G82 -> 10.9 | H83: =H82 -> 733.3333333 | I83: =C83+D83*G83+E83*SQRT(H83)*G83/100 -> 5.500652756
B84: G:ha当たり断面積 | I84: =I82/I83 -> 23.76654442
B85: dg^：断面積平均直径 | H85: =H82 -> 733.3333333 | I85: =200*SQRT(I84/(PI()*H85)) -> 20.31362201
B86: d^：平均胸高直径 | C86: -0.046068 | D86: 0.991597 | E86: -0.02918 | G86: =G82 -> 10.9 | H86: =H82 -> 733.3333333 | I86: =C86+D86*I85+E86*SQRT(H86)*G86/100 -> 20.01072704
B87: Rｙ：収量比数 | G87: =G82 -> 10.9 | H87: =H82 -> 733.3333333 | I87: =I82/I88 -> 0.4315358672 | K87: =K82/I88 -> 0.3447746083
B88: Vrf：最多密度材積 | C88: =C82 -> 0.04933263 | D88: =D82 -> -1.206227 | E88: =E82 -> 8676.3 | F88: =F82 -> -3.26218 | G88: =G82 -> 10.9 | I88: =(C88*G88^D88+E88*G88^F88/I89)^-1 -> 302.9447098
B89: Nrf:最多密度本数 | C89: 5.9582 | D89: -2.055953 | G89: =G82 -> 10.9 | I89: =10^(C89+D89*LOG(G89)) -> 6688.055668
A90: 12 | B90: V:ha材積 | C90: 0.0651368 | D90: -1.230184 | E90: 9492.9 | F90: -2.948559 | G90: 18.94285714 | H90: 566.6666667 | I90: =(C90*G90^D90+E90*G90^F90/H90)^-1 -> 216.7177768 | J90: 25.18823529 | K90: =I90*(J90/I94)^2 -> 265.6163499
B91: HF:林分形状高 | C91: 0.954862 | D91: 0.42397 | E91: 0.025833 | G91: =G90 -> 18.94285714 | H91: =H90 -> 566.6666667 | I91: =C91+D91*G91+E91*SQRT(H91)*G91/100 -> 9.10255394
B92: G:ha当たり断面積 | I92: =I90/I91 -> 23.80845839
B93: dg^：断面積平均直径 | H93: =H90 -> 566.6666667 | I93: =200*SQRT(I92/(PI()*H93)) -> 23.12900041
B94: d^：平均胸高直径 | C94: -0.176987 | D94: 0.99847 | E94: -0.036531 | G94: =G90 -> 18.94285714 | H94: =H90 -> 566.6666667 | I94: =C94+D94*I93+E94*SQRT(H94)*G94/100 -> 22.75189673
B95: Rｙ：収量比数 | G95: =G90 -> 18.94285714 | H95: =H90 -> 566.6666667 | I95: =I90/I96 -> 0.5807059793 | K95: =K90/I96 -> 0.7117321196
B96: Vrf：最多密度材積 | C96: =C90 -> 0.0651368 | D96: =D90 -> -1.230184 | E96: =E90 -> 9492.9 | F96: =F90 -> -2.948559 | G96: =G90 -> 18.94285714 | I96: =(C96*G96^D96+E96*G96^F96/I97)^-1 -> 373.1970816
B97: Nrf:最多密度本数 | C97: 5.43631 | D97: -1.718375 | G97: =G90 -> 18.94285714 | I97: =10^(C97+D97*LOG(G97)) -> 1742.527402
A98: 13 | B98: V:ha材積 | C98: 0.095669 | D98: -1.274434 | E98: 8833.4 | F98: -3.054618 | G98: 21 | H98: 1000 | I98: =(C98*G98^D98+E98*G98^F98/H98)^-1 -> 359.2903196 | J98: 23 | K98: =I98*(J98/I102)^2 -> 460.1919078
B99: HF:林分形状高 | C99: 0.578096 | D99: 0.460651 | E99: 0.042259 | G99: =G98 -> 21 | H99: =H98 -> 1000 | I99: =C99+D99*G99+E99*SQRT(H99)*G99/100 -> 10.53239985
B100: G:ha当たり断面積 | I100: =I98/I99 -> 34.11286361
B101: dg^：断面積平均直径 | H101: =H98 -> 1000 | I101: =200*SQRT(I100/(PI()*H101)) -> 20.8407886
B102: d^：平均胸高直径 | C102: -0.155598 | D102: 0.982606 | G102: =G98 -> 21 | H102: =H98 -> 1000 | I102: =C102+D102*I101+E102*SQRT(H102)*G102/100 -> 20.32268592
B103: Rｙ：収量比数 | G103: =G98 -> 21 | H103: =H98 -> 1000 | I103: =I98/I104 -> 0.903326957 | K103: =K98/I104 -> 1.157013515
B104: Vrf：最多密度材積 | C104: =C98 -> 0.095669 | D104: =D98 -> -1.274434 | E104: =E98 -> 8833.4 | F104: =F98 -> -3.054618 | G104: =G98 -> 21 | I104: =(C104*G104^D104+E104*G104^F104/I105)^-1 -> 397.7411687
B105: Nrf:最多密度本数 | C105: 5.529749 | D105: -1.780184 | G105: =G98 -> 21 | I105: =10^(C105+D105*LOG(G105)) -> 1499.530719
A106: 14 | B106: V:ha材積 | C106: 0.0719621 | D106: -1.228582 | E106: 14292.3 | F106: -3.415059 | G106: 20 | H106: 1000 | I106: =(C106*G106^D106+E106*G106^F106/H106)^-1 -> 429.2906783 | J106: 24 | K106: =I106*(J106/I110)^2 -> 464.6270672
B107: HF:林分形状高 | C107: 1.047526 | D107: 0.406406 | E107: 0.092623 | G107: =G106 -> 20 | H107: =H106 -> 1000 | I107: =C107+D107*G107+E107*SQRT(H107)*G107/100 -> 9.761445287
B108: G:ha当たり断面積 | I108: =I106/I107 -> 43.97818823
B109: dg^：断面積平均直径 | H109: =H106 -> 1000 | I109: =200*SQRT(I108/(PI()*H109)) -> 23.66321372
B110: d^：平均胸高直径 | C110: -0.288013 | D110: 0.995964 | E110: -0.033264 | G110: =G106 -> 20 | H110: =H106 -> 1000 | I110: =C110+D110*I109+E110*SQRT(H110)*G110/100 -> 23.06931598
B111: Rｙ：収量比数 | G111: =G106 -> 20 | H111: =H106 -> 1000 | I111: =I106/I112 -> 0.8907114234 | K111: =K106/I112 -> 0.9640289372
B112: Vrf：最多密度材積 | C112: =C106 -> 0.0719621 | D112: =D106 -> -1.228582 | E112: =E106 -> 14292.3 | F112: =F106 -> -3.415059 | G112: =G106 -> 20 | I112: =(C112*G112^D112+E112*G112^F112/I113)^-1 -> 481.9638179
B113: Nrf:最多密度本数 | C113: 6.140608 | D113: -2.186477 | G113: =G106 -> 20 | I113: =10^(C113+D113*LOG(G113)) -> 1976.677588
A114: 15 | B114: V:ha材積 | C114: 0.0779762 | D114: -1.201192 | E114: 9775.3 | F114: -3.338925 | G114: 20 | H114: 1000 | I114: =(C114*G114^D114+E114*G114^F114/H114)^-1 -> 388.110711 | J114: 24 | K114: =I114*(J114/I118)^2 -> 449.9267929
B115: HF:林分形状高 | C115: 0.886868 | D115: 0.378014 | E115: 0.15512 | G115: =G114 -> 20 | H115: =H114 -> 1000 | I115: =C115+D115*G115+E115*SQRT(H115)*G115/100 -> 9.428213021
B116: G:ha当たり断面積 | I116: =I114/I115 -> 41.16482202
B117: dg^：断面積平均直径 | H117: =H114 -> 1000 | I117: =200*SQRT(I116/(PI()*H117)) -> 22.89381559
B118: d^：平均胸高直径 | C118: -0.342939 | D118: 0.988623 | G118: =G114 -> 20 | H118: =H114 -> 1000 | I118: =C118+D118*I117+E118*SQRT(H118)*G118/100 -> 22.29041365
B119: Rｙ：収量比数 | G119: =G114 -> 20 | H119: =H114 -> 1000 | I119: =I114/I120 -> 0.8995630465
B120: Vrf：最多密度材積 | C120: =C114 -> 0.0779762 | D120: =D114 -> -1.201192 | E120: =E114 -> 9775.3 | F120: =F114 -> -3.338925 | G120: =G114 -> 20 | I120: =(C120*G120^D120+E120*G120^F120/I121)^-1 -> 431.4435909
B121: Nrf:最多密度本数 | C121: 6.162775 | D121: -2.137733 | G121: =G114 -> 20 | I121: =10^(C121+D121*LOG(G121)) -> 2407.244728
A122: 16 | B122: V:ha材積 | C122: 0.0875812 | D122: -1.297241 | E122: 13053 | F122: -3.605911 | G122: 20 | H122: 1000 | I122: =(C122*G122^D122+E122*G122^F122/H122)^-1 -> 484.702678 | J122: 24 | K122: =I122*(J122/I126)^2 -> 477.9663194
B123: HF:林分形状高 | C123: 1.169226 | D123: 0.421353 | E123: 0.050591 | G123: =G122 -> 20 | H123: =H122 -> 1000 | I123: =C123+D123*G123+E123*SQRT(H123)*G123/100 -> 9.916251578
B124: G:ha当たり断面積 | I124: =I122/I123 -> 48.87962696
B125: dg^：断面積平均直径 | H125: =H122 -> 1000 | I125: =200*SQRT(I124/(PI()*H125)) -> 24.9470387
B126: d^：平均胸高直径 | C126: -0.394096 | D126: 0.984591 | G126: =G122 -> 20 | H126: =H122 -> 1000 | I126: =C126+D126*I125+E126*SQRT(H126)*G126/100 -> 24.16853378
B127: Rｙ：収量比数 | G127: =G122 -> 20 | H127: =H122 -> 1000 | I127: =I122/I128 -> 0.9441286606 | K127: =K122/I128 -> 0.9310072369
B128: Vrf：最多密度材積 | C128: =C122 -> 0.0875812 | D128: =D122 -> -1.297241 | E128: =E122 -> 13053 | F128: =F122 -> -3.605911 | G128: =G122 -> 20 | I128: =(C128*G128^D128+E128*G128^F128/I129)^-1 -> 513.3862558
B129: Nrf:最多密度本数 | C129: 6.250765 | D129: -2.30867 | G129: =G122 -> 20 | I129: =10^(C129+D129*LOG(G129)) -> 1766.509917
A130: 17 | B130: V:ha材積 | C130: 0.0972414 | D130: -1.303824 | E130: 17965.6 | F130: -3.624208 | G130: 20 | H130: 1000 | I130: =(C130*G130^D130+E130*G130^F130/H130)^-1 -> 434.2375241 | J130: 24 | K130: =I130*(J130/I134)^2 -> 459.7395958
B131: HF:林分形状高 | C131: 1.347274 | D131: 0.346841 | E131: 0.165699 | G131: =G130 -> 20 | H131: =H130 -> 1000 | I131: =C131+D131*G131+E131*SQRT(H131)*G131/100 -> 9.332066492
B132: G:ha当たり断面積 | I132: =I130/I131 -> 46.53176491
B133: dg^：断面積平均直径 | H133: =H130 -> 1000 | I133: =200*SQRT(I132/(PI()*H133)) -> 24.34051831
B134: d^：平均胸高直径 | C134: -0.286786 | D134: 0.970055 | G134: =G130 -> 20 | H134: =H130 -> 1000 | I134: =C134+D134*I133+E134*SQRT(H134)*G134/100 -> 23.32485549
B135: Rｙ：収量比数 | G135: =G130 -> 20 | H135: =H130 -> 1000 | I135: =I130/I136 -> 0.9228696576 | K135: =K130/I136 -> 0.977068309
B136: Vrf：最多密度材積 | C136: =C130 -> 0.0972414 | D136: =D130 -> -1.303824 | E136: =E130 -> 17965.6 | F136: =F130 -> -3.624208 | G136: =G130 -> 20 | I136: =(C136*G136^D136+E136*G136^F136/I137)^-1 -> 470.5296361
B137: Nrf:最多密度本数 | C137: 6.33151 | D137: -2.320384 | G137: =G130 -> 20 | I137: =10^(C137+D137*LOG(G137)) -> 2054.096367
A138: 18 | B138: V:ha材積 | C138: 0.0723021 | D138: -1.090327 | E138: 18255.4 | F138: -3.270981 | G138: 20 | H138: 1000 | I138: =(C138*G138^D138+E138*G138^F138/H138)^-1 -> 265.1552892 | J138: 24 | K138: =I138*(J138/I142)^2 -> 467.8578038
B139: HF:林分形状高 | C139: 0.596469 | D139: 0.367905 | E139: 0.097194 | G139: =G138 -> 20 | H139: =H138 -> 1000 | I139: =C139+D139*G139+E139*SQRT(H139)*G139/100 -> 8.56927783
B140: G:ha当たり断面積 | I140: =I138/I139 -> 30.94254784
B141: dg^：断面積平均直径 | H141: =H138 -> 1000 | I141: =200*SQRT(I140/(PI()*H141)) -> 19.84874694
B142: d^：平均胸高直径 | C142: 0.478488 | D142: 0.911902 | E142: -0.08077 | G142: =G138 -> 20 | H142: =H138 -> 1000 | I142: =C142+D142*I141+E142*SQRT(H142)*G142/100 -> 18.0677657
B143: Rｙ：収量比数 | G143: =G138 -> 20 | H143: =H138 -> 1000 | I143: =I138/I144 -> 0.8006391688 | K143: =K138/I144 -> 1.412701531
B144: Vrf：最多密度材積 | C144: =C138 -> 0.0723021 | D144: =D138 -> -1.090327 | E144: =E138 -> 18255.4 | F144: =F138 -> -3.270981 | G144: =G138 -> 20 | I144: =(C144*G144^D144+E144*G144^F144/I145)^-1 -> 331.179512
B145: Nrf:最多密度本数 | C145: 6.425444 | D145: -2.180654 | G145: =G138 -> 20 | I145: =10^(C145+D145*LOG(G145)) -> 3875.678429
A146: 19 | B146: V:ha材積 | C146: 0.0700416 | D146: -1.071349 | E146: 20847.2 | F146: -3.214048 | G146: 20 | H146: 1000 | I146: =(C146*G146^D146+E146*G146^F146/H146)^-1 -> 238.0664238 | J146: 24 | K146: =I146*(J146/I150)^2 -> 462.9702764
B147: HF:林分形状高 | C147: 0.432383 | D147: 0.37653 | E147: 0.103221 | G147: =G146 -> 20 | H147: =H146 -> 1000 | I147: =C147+D147*G147+E147*SQRT(H147)*G147/100 -> 8.615809925
B148: G:ha当たり断面積 | I148: =I146/I147 -> 27.63134585
B149: dg^：断面積平均直径 | H149: =H146 -> 1000 | I149: =200*SQRT(I148/(PI()*H149)) -> 18.75668473
B150: d^：平均胸高直径 | C150: 0.435661 | D150: 0.919064 | E150: -0.073387 | G150: =G146 -> 20 | H150: =H146 -> 1000 | I150: =C150+D150*I149+E150*SQRT(H150)*G150/100 -> 17.21011455
B151: Rｙ：収量比数 | G151: =G146 -> 20 | H151: =H146 -> 1000 | I151: =I146/I152 -> 0.7958727758 | K151: =K146/I152 -> 1.547742152
B152: Vrf：最多密度材積 | C152: =C146 -> 0.0700416 | D152: =D146 -> -1.071349 | E152: =E146 -> 20847.2 | F152: =F146 -> -3.214048 | G152: =G146 -> 20 | I152: =(C152*G152^D152+E152*G152^F152/I153)^-1 -> 299.126231
B153: Nrf:最多密度本数 | C153: 6.213431 | D153: -2.142699 | G153: =G146 -> 20 | I153: =10^(C153+D153*LOG(G153)) -> 2665.111169
A154: 20 | B154: V:ha材積 | C154: 0.0641079 | D154: -1.081238 | E154: 18249.9 | F154: -3.243714 | G154: 20 | H154: 1000 | I154: =(C154*G154^D154+E154*G154^F154/H154)^-1 -> 276.8385527 | J154: 24 | K154: =I154*(J154/I158)^2 -> 482.9066601
B155: HF:林分形状高 | C155: 0.284158 | D155: 0.369231 | E155: 0.159348 | G155: =G154 -> 20 | H155: =H154 -> 1000 | I155: =C155+D155*G155+E155*SQRT(H155)*G155/100 -> 8.676583241
B156: G:ha当たり断面積 | I156: =I154/I155 -> 31.90640198
B157: dg^：断面積平均直径 | H157: =H154 -> 1000 | I157: =200*SQRT(I156/(PI()*H157)) -> 20.15551853
B158: d^：平均胸高直径 | C158: 0.504698 | D158: 0.910057 | E158: -0.10685 | G158: =G154 -> 20 | H158: =H154 -> 1000 | I158: =C158+D158*I157+E158*SQRT(H158)*G158/100 -> 18.17158999
B159: Rｙ：収量比数 | G159: =G154 -> 20 | H159: =H154 -> 1000 | I159: =I154/I160 -> 0.7847741503 | K159: =K154/I160 -> 1.368930231
B160: Vrf：最多密度材積 | C160: =C154 -> 0.0641079 | D160: =D154 -> -1.081238 | E160: =E154 -> 18249.9 | F160: =F154 -> -3.243714 | G160: =G154 -> 20 | I160: =(C160*G160^D160+E160*G160^F160/I161)^-1 -> 352.7620687
B161: Nrf:最多密度本数 | C161: 6.346958 | D161: -2.162476 | G161: =G154 -> 20 | I161: =10^(C161+D161*LOG(G161)) -> 3415.952784
A162: 21 | B162: V:ha材積 | C162: 0.0334495 | D162: -0.982417 | E162: 15954.1 | F162: -2.947251 | G162: 20 | H162: 1000 | I162: =(C162*G162^D162+E162*G162^F162/H162)^-1 -> 243.9859731 | J162: 24 | K162: =I162*(J162/I166)^2 -> 450.0612425
B163: HF:林分形状高 | C163: 0.941865 | D163: 0.349206 | E163: 0.095344 | G163: =G162 -> 20 | H163: =H162 -> 1000 | I163: =C163+D163*G163+E163*SQRT(H163)*G163/100 -> 8.528993402
B164: G:ha当たり断面積 | I164: =I162/I163 -> 28.60665516
B165: dg^：断面積平均直径 | H165: =H162 -> 1000 | I165: =200*SQRT(I164/(PI()*H165)) -> 19.08484336
B166: d^：平均胸高直径 | C166: 0.0532 | D166: 0.945564 | E166: -0.067716 | G166: =G162 -> 20 | H166: =H162 -> 1000 | I166: =C166+D166*I165+E166*SQRT(H166)*G166/100 -> 17.67086723
B167: Rｙ：収量比数 | G167: =G162 -> 20 | H167: =H162 -> 1000 | I167: =I162/I168 -> 0.7645407075 | K167: =K162/I168 -> 1.410286568
B168: Vrf：最多密度材積 | C168: =C162 -> 0.0334495 | D168: =D162 -> -0.982417 | E168: =E162 -> 15954.1 | F168: =F162 -> -2.947251 | G168: =G162 -> 20 | I168: =(C168*G168^D168+E168*G168^F168/I169)^-1 -> 319.1275111
B169: Nrf:最多密度本数 | C169: 5.787804 | D169: -1.964834 | G169: =G162 -> 20 | I169: =10^(C169+D169*LOG(G169)) -> 1704.10374
A170: 22 | B170: V:ha材積 | C170: 0.0572424 | D170: -1.005549 | E170: 13421.6 | F170: -3.016648 | G170: 20 | H170: 1000 | I170: =(C170*G170^D170+E170*G170^F170/H170)^-1 -> 226.7051549 | J170: 24 | K170: =I170*(J170/I174)^2 -> 477.4081247
B171: HF:林分形状高 | C171: 0.969206 | D171: 0.413453 | G171: =G170 -> 20 | H171: =H170 -> 1000 | I171: =C171+D171*G171+E171*SQRT(H171)*G171/100 -> 9.238266
B172: G:ha当たり断面積 | I172: =I170/I171 -> 24.53979512
B173: dg^：断面積平均直径 | H173: =H170 -> 1000 | I173: =200*SQRT(I172/(PI()*H173)) -> 17.67626589
B174: d^：平均胸高直径 | C174: 0.301148 | D174: 0.942676 | E174: -0.067294 | G174: =G170 -> 20 | H174: =H170 -> 1000 | I174: =C174+D174*I173+E174*SQRT(H174)*G174/100 -> 16.53853499
B175: Rｙ：収量比数 | G175: =G170 -> 20 | H175: =H170 -> 1000 | I175: =I170/I176 -> 0.8847366201 | K175: =K170/I176 -> 1.863126804
B176: Vrf：最多密度材積 | C176: =C170 -> 0.0572424 | D176: =D170 -> -1.005549 | E176: =E170 -> 13421.6 | F176: =F170 -> -3.016648 | G176: =G170 -> 20 | I176: =(C176*G176^D176+E176*G176^F176/I177)^-1 -> 256.2402751
B177: Nrf:最多密度本数 | C177: 5.783065 | D177: -2.011099 | G177: =G170 -> 20 | I177: =10^(C177+D177*LOG(G177)) -> 1467.455285

Sheet 都道府県 (hidden)
A1: 1 | B1: 北海道 | C1: 2 | E1: 12
A2: 2 | B2: 青森県 | C2: 2 | E2: 13 | F2: 14 | G2: 18
A3: 3 | B3: 岩手県 | C3: 1 | E3: 13 | F3: 14 | G3: 18
A4: 4 | B4: 宮城県 | C4: 1 | D4: 8 | E4: 13 | F4: 14 | G4: 18
A5: 5 | B5: 秋田県 | C5: 2 | E5: 13 | F5: 16 | G5: 18
A6: 6 | B6: 山形県 | C6: 2 | E6: 13 | F6: 16 | G6: 18
A7: 7 | B7: 福島県 | C7: 1 | D7: 8 | E7: 13 | F7: 14 | G7: 18
A8: 8 | B8: 茨城県 | C8: 4 | D8: 8 | F8: 15 | G8: 19
A9: 9 | B9: 栃木県 | C9: 3 | D9: 8 | E9: 13 | F9: 15 | G9: 19
A10: 10 | B10: 群馬県 | C10: 3 | D10: 8 | E10: 13 | F10: 15 | G10: 19
A11: 11 | B11: 埼玉県 | C11: 3 | D11: 8 | E11: 13 | F11: 15 | G11: 19
A12: 12 | B12: 千葉県 | C12: 4 | D12: 8 | F12: 15 | G12: 19
A13: 13 | B13: 東京都 | C13: 4 | D13: 8 | F13: 15 | G13: 19
A14: 14 | B14: 神奈川県 | C14: 4 | D14: 8 | F14: 15 | G14: 19
A15: 15 | B15: 新潟県 | C15: 2 | D15: 8 | E15: 13 | F15: 16 | G15: 18
A16: 16 | B16: 富山県 | C16: 2 | D16: 8 | E16: 13 | F16: 16 | G16: 20
A17: 17 | B17: 石川県 | C17: 2 | D17: 8 | F17: 16 | G17: 20
A18: 18 | B18: 福井県 | C18: 2 | D18: 8 | F18: 16 | G18: 20
A19: 19 | B19: 山梨県 | C19: 3 | D19: 8 | E19: 13 | F19: 15 | G19: 19
A20: 20 | B20: 長野県 | C20: 3 | D20: 8 | E20: 13 | F20: 15 | G20: 19
A21: 21 | B21: 岐阜県 | C21: 3 | D21: 8 | E21: 13 | F21: 15 | G21: 19
A22: 22 | B22: 静岡県 | C22: 4 | D22: 8 | E22: 13 | F22: 15 | G22: 19
A23: 23 | B23: 愛知県 | C23: 4 | D23: 8 | F23: 15 | G23: 19
A24: 24 | B24: 三重県 | C24: 4 | D24: 10 | F24: 17 | G24: 21
A25: 25 | B25: 滋賀県 | C25: 5 | D25: 9 | F25: 17 | G25: 21
A26: 26 | B26: 京都府 | C26: 5 | D26: 9 | F26: 17 | G26: 21
A27: 27 | B27: 大阪府 | C27: 5 | D27: 9 | F27: 17 | G27: 21
A28: 28 | B28: 兵庫県 | C28: 5 | D28: 9 | F28: 17 | G28: 21
A29: 29 | B29: 奈良県 | C29: 6 | D29: 10 | F29: 17 | G29: 21
A30: 30 | B30: 和歌山県 | C30: 6 | D30: 10 | F30: 17 | G30: 21
A31: 31 | B31: 鳥取県 | C31: 5 | D31: 9 | F31: 17 | G31: 20
A32: 32 | B32: 島根県 | C32: 5 | D32: 9 | F32: 17 | G32: 20
A33: 33 | B33: 岡山県 | C33: 5 | D33: 9 | F33: 17 | G33: 21
A34: 34 | B34: 広島県 | C34: 5 | D34: 9 | F34: 17 | G34: 21
A35: 35 | B35: 山口県 | C35: 5 | D35: 9 | F35: 17 | G35: 21
A36: 36 | B36: 徳島県 | C36: 6 | D36: 10 | F36: 17 | G36: 22
A37: 37 | B37: 香川県 | C37: 6 | D37: 10 | F37: 17 | G37: 22
A38: 38 | B38: 愛媛県 | C38: 6 | D38: 10 | F38: 17 | G38: 22
A39: 39 | B39: 高知県 | C39: 6 | D39: 10 | F39: 17 | G39: 22
A40: 40 | B40: 福岡県 | C40: 7 | D40: 11 | F40: 17 | G40: 22
A41: 41 | B41: 佐賀県 | C41: 7 | D41: 11 | F41: 17 | G41: 22
A42: 42 | B42: 長崎県 | C42: 7 | D42: 11 | F42: 17 | G42: 22
A43: 43 | B43: 熊本県 | C43: 7 | D43: 11 | F43: 17 | G43: 22
A44: 44 | B44: 大分県 | C44: 7 | D44: 11 | F44: 17 | G44: 22
A45: 45 | B45: 宮崎県 | C45: 7 | D45: 11 | F45: 17 | G45: 22
A46: 46 | B46: 鹿児島県 | C46: 7 | D46: 11 | F46: 17 | G46: 22
A47: 47 | B47: 沖縄県
C48: スギ | D48: ヒノキ | E48: カラマツ | F48: アカマツ | G48: 広葉樹

Sheet 成長量 (hidden)
A1: 詳細版 | C1: ２０年生以下 | D1: ２１年生以上 | G1: 詳細版近似式 | I1: ゴンペルツ | J1: y=Kb^a^x | L1: 森林資源現況調査平成２３年版による近似材積量近似式 | S1: 5 | T1: 1 | U1: A団地 伐捨て間伐対象森林
B2: スギ | C2: 1.15234075 | D2: 0.90278925 | L2: x：齢級 | T2: 2 | U2: B団地 搬出間伐対象森林
B3: ヒノキ | C3: 1.48640877 | D3: 1.189127016 | G3: スギ | H3: 1 | I3: K(指定) | J3: 600 | T3: 3 | U3: C認証森林 間伐予定
B4: カラマツ | C4: 1.4618538 | D4: 1.12075458 | I4: a | J4: 0.811886475 | T4: 4 | U4: 長伐期施業 間伐
B5: その他樹種 | C5: 1.550988008 | D5: 1.272230336 | I5: b | J5: 0.01544896187 | T5: 5 | U5: あああ
H6: 2 | I6: K(指定) | J6: 600 | T6: 6
I7: a | J7: 0.7922648575 | T7: 7
I8: b | J8: 0.005668413842 | T8: 8
H9: 3 | I9: K(指定) | J9: 600 | T9: 9
I10: a | J10: 0.8011452487 | T10: 10
I11: b | J11: 0.01204150956
H12: 4 | I12: K(指定) | J12: 500
I13: a | J13: 0.7787544295
I14: b | J14: 0.008339130408
H15: 5 | I15: K(指定) | J15: 600
I16: a | J16: 0.8163384122
I17: b | J17: 0.04756010024
H18: 6 | I18: K(指定) | J18: 700
I19: a | J19: 0.8098082188
I20: b | J20: 0.01927988403
H21: 7 | I21: K(指定) | J21: 700
I22: a | J22: 0.7787403113
I23: b | J23: 0.003531881461
G24: ヒノキ | H24: 8 | I24: K(指定) | J24: 400
I25: a | J25: 0.8169020062
I26: b | J26: 0.01875676767
H27: 9 | I27: K(指定) | J27: 400
I28: a | J28: 0.8103032195
I29: b | J29: 0.03372668053
H30: 10 | I30: K(指定) | J30: 400
I31: a | J31: 0.7674468806
I32: b | J32: 0.007955725525
H33: 11 | I33: K(指定) | J33: 500
I34: a | J34: 0.8124596868
I35: b | J35: 0.02603314093
G36: カラマツ | H36: 12 | I36: K(指定) | J36: 400
I37: a | J37: 0.8911799772
I38: b | J38: 0.1089875334
H39: 13 | I39: K(指定) | J39: 300
I40: a | J40: 0.8499850804
I41: b | J41: 0.1678565772
G42: その他 | H42: 14 | I42: K(指定) | J42: 200 | P42: =J42*J44^(J43^11) -> 125.9405646
I43: a | J43: 0.8574576914
I44: b | J44: 0.08121886119
